fUSD/lending_fUSD_20240331
["ID","MTS","AMOUNT","RATE_DAILY","PERIOD"]
[321111215,1711900281093,-515.35968765,0.00055068,120]
[321111216,1711900281103,-500.0,0.00055068,120]
[321111217,1711900281113,-500.0,0.00055068,120]
[321111218,1711900281123,-508.97119327,0.00055068,120]
[321111219,1711900281133,-500.0,0.00055068,120]
[321111220,1711900281143,-504.0362245,0.00055068,120]
[321111221,1711900281152,-500.0,0.00055068,120]
[321111222,1711900281162,-584.78421694,0.00055068,120]
[321111223,1711900281172,-500.0,0.00055068,120]
[321111224,1711900281181,-500.0,0.00055068,120]
[321111225,1711900281191,-500.0,0.00055068,120]
[321111226,1711900281201,-500.0,0.00055068,120]
[321111227,1711900281211,-959.19,0.00055068,120]
[321111228,1711900281221,-683.74,0.00055068,120]
[321111229,1711900281231,-500.0,0.00055068,120]
[321111230,1711900281241,-452.77709988,0.00055068,120]
[321111231,1711900281252,-511.00401772,0.00055068,120]
[321111232,1711900281262,-500.0,0.00055068,120]
[321111233,1711900281273,-500.0,0.00055068,120]
[321111234,1711900281283,-500.0,0.00055068,120]
[321111235,1711900281294,-1061.5,0.00055068,120]
[321111236,1711900281305,-736.85,0.00055068,120]
[321111237,1711900281316,-500.0,0.00055068,120]
[321111238,1711900281326,-500.0,0.00055068,120]
[321111239,1711900281336,-500.0,0.00055068,120]
[321111240,1711900281346,-500.0,0.00055068,120]
[321111241,1711900281356,-500.0,0.00055068,120]
[321111242,1711900281366,-500.0,0.00055068,120]
[321111243,1711900281377,-500.0,0.00055068,120]
[321111244,1711900281387,-500.0,0.00055068,120]
[321111245,1711900281398,-514.75937447,0.00055068,120]
[321111246,1711900281407,-592.16,0.00055068,120]
[321111247,1711900281417,-500.0,0.00055068,120]
[321111248,1711900281428,-500.0,0.00055068,120]
[321111249,1711900281438,-508.1498406,0.00055068,120]
[321111250,1711900281448,-500.0,0.00055068,120]
[321111251,1711900281458,-500.0,0.00055068,120]
[321111252,1711900281467,-500.0,0.00055068,120]
[321111253,1711900281478,-571.87,0.00055068,120]
[321111254,1711900281488,-500.0,0.00055068,16]
[321111255,1711900281498,-506.21993882,0.00055068,120]
[321111256,1711900281508,-781.99,0.00055068,120]
[321111257,1711900281518,-500.0,0.00055068,120]
[321111258,1711900281528,-500.0,0.00055068,120]
[321111259,1711900281539,-828.46,0.00055068,120]
[321111260,1711900281549,-500.0,0.00055068,120]
[321111261,1711900281559,-500.0,0.00055068,120]
[321111262,1711900281569,-500.0,0.00055068,120]
[321111263,1711900281579,-500.0,0.00055068,120]
[321111264,1711900281590,-150.0,0.00055068,14]
[321111265,1711900281599,-500.0,0.00055068,120]
[321111266,1711900281609,-500.0,0.00055068,120]
[321111267,1711900281619,-500.0,0.00055068,120]
[321111268,1711900281629,-500.0,0.00055068,120]
[321111269,1711900281639,-500.0,0.00055068,120]
[321111270,1711900281650,-500.0,0.00055068,120]
[321111271,1711900281660,-519.19,0.00055068,120]
[321111272,1711900281671,-680.37,0.00055068,120]
[321111273,1711900281681,-500.0,0.00055068,120]
[321111274,1711900281692,-500.0,0.00055068,120]
[321111275,1711900281704,-735.71,0.00055068,120]
[321111276,1711900281715,-500.0,0.00055068,120]
[321111277,1711900281725,-500.0,0.00055068,120]
[321111278,1711900281735,-500.0,0.00055068,120]
[321111279,1711900281744,-500.0,0.00055068,120]
[321111280,1711900281754,-500.0,0.00055068,120]
[321111281,1711900281764,-500.0,0.00055068,2]
[321111282,1711900281774,-648.33,0.00055068,120]
[321111283,1711900281784,-500.0,0.00055068,120]
[321111284,1711900281793,-500.0,0.00055068,120]
[321111285,1711900281803,-517.83018583,0.00055068,120]
[321111286,1711900281813,-518.15926411,0.00055068,120]
[321111287,1711900281823,-500.0,0.00055068,120]
[321111288,1711900281832,-500.0,0.00055068,120]
[321111289,1711900281842,-500.0,0.00055068,120]
[321111290,1711900281851,-500.0,0.00055068,120]
[321111291,1711900281861,-500.0,0.00055068,120]
[321111292,1711900281871,-500.0,0.00055068,120]
[321111293,1711900281880,-500.0,0.00055068,120]
[321111294,1711900281890,-680.7,0.00055068,120]
[321111295,1711900281899,-500.0,0.00055068,120]
[321111296,1711900281908,-500.0,0.00055068,120]
[321111297,1711900281918,-502.61031171,0.00055068,120]
[321111298,1711900281927,-300.0,0.00055068,2]
[321111299,1711900281937,-500.0,0.00055068,120]
[321111300,1711900281947,-500.0,0.00055068,120]
[321111301,1711900281957,-500.0,0.00055068,120]
[321111302,1711900281966,-1067.63,0.00055068,120]
[321111303,1711900281976,-617.46,0.00055068,120]
[321111304,1711900281985,-500.0,0.00055068,120]
[321111305,1711900281995,-504.78416849,0.00055068,120]
[321111306,1711900282005,-500.0,0.00055068,120]
[321111307,1711900282015,-520.08506258,0.00055068,120]
[321111308,1711900282024,-500.0,0.00055068,120]
[321111309,1711900282034,-500.0,0.00055068,120]
[321111310,1711900282043,-500.0,0.00055068,120]
[321111311,1711900282053,-500.0,0.00055068,120]
[321111312,1711900282063,-615.17,0.00055068,120]
[321111313,1711900282073,-500.0,0.00055068,120]
[321111314,1711900282083,-500.0,0.00055068,120]
[321111315,1711900282093,-753.46,0.00055068,120]
[321111316,1711900282103,-671.0,0.00055068,120]
[321111317,1711900282112,-742.98,0.00055068,120]
[321111318,1711900282123,-500.0,0.00055068,120]
[321111319,1711900282133,-506.38038793,0.00055068,120]
[321111320,1711900282142,-500.0,0.00055068,120]
[321111321,1711900282152,-490.43165862,0.00055068,120]
[321111322,1711900282162,-500.0,0.00055068,120]
[321111323,1711900282172,-500.0,0.00055068,120]
[321111324,1711900282182,-500.0,0.00055068,120]
[321111325,1711900282192,-579.39,0.00055068,120]
[321111326,1711900282203,-759.51,0.00055068,120]
[321111327,1711900282213,-500.0,0.00055068,120]
[321111328,1711900282224,-500.0,0.00055068,120]
[321111329,1711900282234,-169.624388,0.00055068,120]
[321111330,1711900282245,-500.0,0.00055068,120]
[321111331,1711900282256,-512.64903988,0.00055068,120]
[321111332,1711900282267,-512.34711727,0.00055068,120]
[321111333,1711900282277,-500.0,0.00055068,120]
[321111334,1711900282287,-169.624388,0.00055068,120]
[321111335,1711900282301,-500.0,0.00055068,120]
[321111336,1711900282311,-500.0,0.00055068,120]
[321111337,1711900282321,-307.543145,0.00055068,120]
[321111338,1711900282331,-519.90601208,0.00055068,120]
[321111339,1711900282341,-524.27395883,0.00055068,120]
[321111340,1711900282352,-500.0,0.00055068,120]
[321111341,1711900282362,-500.0,0.00055068,120]
[321111342,1711900282374,-500.0,0.00055068,7]
[321111343,1711900282385,-307.543145,0.00055068,120]
[321111344,1711900282396,-500.0,0.00055068,120]
[321111345,1711900282406,-500.0,0.00055068,120]
[321111346,1711900282416,-500.0,0.00055068,120]
[321111347,1711900282427,-483.37654372,0.00055068,120]
[321111348,1711900282436,-562.36,0.00055068,120]
[321111349,1711900282446,-730.83,0.00055068,30]
[321111350,1711900282456,-500.0,0.00055068,120]
[321111351,1711900282466,-500.0,0.00055068,120]
[321111352,1711900282475,-511.78395605,0.00055068,120]
[321111353,1711900282486,-151.0,0.00055068,120]
[321111354,1711900282495,-500.0,0.00055068,120]
[321111355,1711900282505,-500.0,0.00055068,120]
[321111356,1711900282514,-500.0,0.00055068,120]
[321111357,1711900282524,-500.0,0.00055068,120]
[321111358,1711900282534,-591.57,0.00055068,120]
[321111359,1711900282544,-151.0,0.00055068,120]
[321111360,1711900282553,-500.0,0.00055068,120]
[321111361,1711900282563,-754.29,0.00055068,120]
[321111362,1711900282573,-500.0,0.00055068,120]
[321111363,1711900282583,-500.0,0.00055068,120]
[321111364,1711900282593,-544.56,0.00055068,120]
[321111365,1711900282602,-500.0,0.00055068,120]
[321111366,1711900282612,-500.0,0.00055068,120]
[321111367,1711900282621,-500.0,0.00055068,120]
[321111368,1711900282631,-563.24,0.00055068,120]
[321111369,1711900282641,-151.0,0.00055068,120]
[321111370,1711900282651,-500.0,0.00055068,120]
[321111371,1711900282661,-500.0,0.00055068,120]
[321111372,1711900282671,-500.0,0.00055068,120]
[321111373,1711900282681,-500.0,0.00055068,120]
[321111374,1711900282691,-510.09541908,0.00055068,120]
[321111375,1711900282702,-500.0,0.00055068,120]
[321111376,1711900282712,-662.41,0.00055068,120]
[321111377,1711900282723,-500.0,0.00055068,120]
[321111378,1711900282734,-995.44,0.00055068,120]
[321111379,1711900282743,-500.0,0.00055068,120]
[321111380,1711900282754,-500.0,0.00055068,120]
[321111381,1711900282765,-500.0,0.00055068,120]
[321111382,1711900282775,-500.0,0.00055068,120]
[321111383,1711900282786,-500.0,0.00055068,120]
[321111384,1711900282796,-500.0,0.00055068,120]
[321111385,1711900282807,-500.0,0.00055068,120]
[321111386,1711900282818,-500.0,0.00055068,120]
[321111387,1711900282829,-151.0,0.00055068,120]
[321111388,1711900282840,-500.0,0.00055068,120]
[321111389,1711900282850,-629.64,0.00055068,120]
[321111390,1711900282861,-500.0,0.00055068,120]
[321111391,1711900282871,-531.25,0.00055068,120]
[321111392,1711900282881,-151.0,0.00055068,120]
[321111393,1711900282892,-500.0,0.00055068,120]
[321111394,1711900282902,-279.83563043,0.00055068,120]
[321111395,1711900282912,-500.0,0.00055068,30]
[321111396,1711900282922,-543.59,0.00055068,120]
[321111397,1711900282932,-151.0,0.00055068,120]
[321111398,1711900282942,-500.0,0.00055068,120]
[321111399,1711900282952,-151.0,0.00055068,120]
[321111400,1711900282963,-500.0,0.00055068,120]
[321111401,1711900282973,-761.88,0.00055068,120]
[321111402,1711900282984,-479.38891327,0.00055068,120]
[321111403,1711900282994,-500.0,0.00055068,120]
[321111404,1711900283007,-500.0,0.00055068,120]
[321111405,1711900283018,-500.0,0.00055068,120]
[321111406,1711900283029,-711.25,0.00055068,120]
[321111407,1711900283040,-500.0,0.00055068,120]
[321111408,1711900283050,-646.54,0.00055068,120]
[321111409,1711900283062,-500.0,0.00055068,120]
[321111410,1711900283073,-306.328758,0.00055068,120]
[321111411,1711900283084,-500.0,0.00055068,120]
[321111412,1711900283094,-1048.22,0.00055068,120]
[321111413,1711900283104,-500.0,0.00055068,120]
[321111414,1711900283115,-500.0,0.00055068,120]
[321111415,1711900283126,-500.0,0.00055068,120]
[321111416,1711900283136,-500.0,0.00055068,120]
[321111417,1711900283147,-306.328758,0.00055068,120]
[321111418,1711900283158,-500.0,0.00055068,120]
[321111419,1711900283168,-155.70752,0.00055068,120]
[321111420,1711900283179,-500.0,0.00055068,120]
[321111421,1711900283189,-500.0,0.00055068,120]
[321111422,1711900283200,-500.0,0.00055068,120]
[321111423,1711900283210,-500.0,0.00055068,120]
[321111424,1711900283221,-500.0,0.00055068,120]
[321111425,1711900283232,-506.76450457,0.00055068,120]
[321111426,1711900283243,-500.0,0.00055068,120]
[321111427,1711900283258,-500.0,0.00055068,120]
[321111428,1711900283269,-844.59,0.00055068,120]
[321111429,1711900283279,-519.79,0.00055068,120]
[321111430,1711900283289,-729.88,0.00055068,120]
[321111431,1711900283301,-500.0,0.00055068,120]
[321111432,1711900283311,-500.0,0.00055068,120]
[321111433,1711900283322,-539.07,0.00055068,120]
[321111434,1711900283332,-915.41,0.00055068,120]
[321111435,1711900283343,-500.0,0.00055068,120]
[321111436,1711900283354,-500.0,0.00055068,120]
[321111437,1711900283365,-500.0,0.00055068,120]
[321111438,1711900283376,-500.0,0.00055068,120]
[321111439,1711900283387,-771.12,0.00055068,120]
[321111440,1711900283398,-500.0,0.00055068,120]
[321111441,1711900283409,-500.0,0.00055068,120]
[321111442,1711900283419,-500.0,0.00055068,120]
[321111443,1711900283430,-500.0,0.00055068,120]
[321111444,1711900283635,-500.0,0.00055068,120]
[321111445,1711900283646,-500.0,0.00055068,120]
[321111446,1711900283655,-500.0,0.00055068,120]
[321111447,1711900283665,-544.62,0.00055068,120]
[321111448,1711900283674,-618.81,0.00055068,120]
[321111449,1711900283683,-152.241133,0.00055068,120]
[321111450,1711900283693,-560.35,0.00055068,120]
[321111451,1711900283711,-507.79901688,0.00055068,120]
[321111452,1711900283720,-500.0,0.00055068,120]
[321111453,1711900283730,-500.0,0.00055068,120]
[321111454,1711900283740,-500.0,0.00055068,120]
[321111455,1711900283750,-500.0,0.00055068,120]
[321111456,1711900283761,-500.0,0.00055068,120]
[321111457,1711900283771,-500.0,0.00055068,120]
[321111458,1711900283781,-500.0,0.00055068,120]
[321111459,1711900283790,-500.0,0.00055068,120]
[321111460,1711900283800,-500.0,0.00055068,120]
[321111461,1711900283809,-500.0,0.00055068,120]
[321111462,1711900283819,-500.0,0.00055068,120]
[321111463,1711900283828,-500.0,0.00055068,120]
[321111464,1711900283837,-500.0,0.00055068,120]
[321111465,1711900283848,-500.0,0.00055068,120]
[321111466,1711900283857,-500.0,0.00055068,120]
[321111467,1711900283866,-500.0,0.00055068,120]
[321111468,1711900283876,-500.0,0.00055068,120]
[321111469,1711900283886,-500.0,0.00055068,120]
[321111470,1711900283895,-500.0,0.00055068,120]
[321111471,1711900283904,-500.0,0.00055068,120]
[321111472,1711900283914,-500.0,0.00055068,120]
[321111473,1711900283924,-500.0,0.00055068,120]
[321111474,1711900283933,-500.0,0.00055068,120]
[321111475,1711900283943,-501.77450957,0.00055068,120]
[321111476,1711900283953,-500.0,0.00055068,120]
[321111477,1711900283962,-151.0,0.00055068,120]
[321111478,1711900283971,-500.0,0.00055068,120]
[321111479,1711900283981,-860.0,0.00055068,120]
[321111480,1711900283990,-500.0,0.00055068,120]
[321111481,1711900283999,-500.0,0.00055068,120]
[321111482,1711900284010,-500.0,0.00055068,120]
[321111483,1711900284019,-500.0,0.00055068,120]
[321111484,1711900284029,-500.0,0.00055068,120]
[321111485,1711900284038,-500.0,0.00055068,120]
[321111486,1711900284048,-500.0,0.00055068,120]
[321111487,1711900284057,-500.0,0.00055068,120]
[321111488,1711900284066,-500.0,0.00055068,120]
[321111489,1711900284076,-500.0,0.00055068,120]
[321111490,1711900284086,-881.22,0.00055068,120]
[321111491,1711900284096,-245.24527678,0.00055068,120]
[321111492,1711900284105,-500.0,0.00055068,120]
[321111493,1711900284115,-500.0,0.00055068,120]
[321111494,1711900284124,-500.0,0.00055068,120]
[321111495,1711900284133,-500.0,0.00055068,120]
[321111496,1711900284142,-500.0,0.00055068,120]
[321111497,1711900284153,-644.32,0.00055068,120]
[321111498,1711900284163,-507.5118779,0.00055068,120]
[321111499,1711900284173,-500.0,0.00055068,120]
[321111500,1711900284182,-500.0,0.00055068,120]
[321111501,1711900284192,-500.0,0.00055068,120]
[321111502,1711900284203,-600.82681453,0.00055068,120]
[321111503,1711900284213,-500.0,0.00055068,120]
[321111504,1711900284223,-500.0,0.00055068,120]
[321111505,1711900284233,-500.0,0.00055068,120]
[321111506,1711900284243,-500.0,0.00055068,120]
[321111507,1711900284254,-500.0,0.00055068,120]
[321111508,1711900284263,-500.0,0.00055068,120]
[321111509,1711900284275,-500.0,0.00055068,120]
[321111510,1711900284285,-500.0,0.00055068,120]
[321111511,1711900284295,-500.0,0.00055068,120]
[321111512,1711900284305,-500.0,0.00055068,120]
[321111513,1711900284314,-500.0,0.00055068,120]
[321111514,1711900284323,-500.0,0.00055068,120]
[321111515,1711900284333,-500.0,0.00055068,120]
[321111516,1711900284342,-500.0,0.00055068,120]
[321111517,1711900284352,-1276.69,0.00055068,120]
[321111518,1711900284362,-500.0,0.00055068,120]
[321111519,1711900284372,-500.0,0.00055068,120]
[321111520,1711900284382,-500.0,0.00055068,120]
[321111521,1711900284391,-500.0,0.00055068,120]
[321111522,1711900284400,-500.0,0.00055068,120]
[321111523,1711900284411,-500.0,0.00055068,120]
[321111524,1711900284420,-500.0,0.00055068,120]
[321111525,1711900284430,-500.0,0.00055068,120]
[321111526,1711900284439,-500.0,0.00055068,120]
[321111527,1711900284448,-500.0,0.00055068,120]
[321111528,1711900284458,-500.0,0.00055068,120]
[321111529,1711900284467,-500.0,0.00055068,120]
[321111530,1711900284477,-500.0,0.00055068,120]
[321111531,1711900284486,-500.0,0.00055068,120]
[321111532,1711900284496,-151.0,0.00055068,120]
[321111533,1711900284511,-500.0,0.00055068,120]
[321111534,1711900284532,-500.0,0.00055068,120]
[321111535,1711900284555,-500.0,0.00055068,120]
[321111536,1711900284578,-1136.40172784,0.00055068,120]
[321111537,1711900284602,-500.0,0.00055068,120]
[321111538,1711900284625,-500.0,0.00055068,120]
[321111539,1711900284647,-151.0,0.00055068,120]
[321111540,1711900284663,-500.0,0.00055068,120]
[321111541,1711900284673,-500.0,0.00055068,120]
[321111542,1711900284683,-500.0,0.00055068,120]
[321111543,1711900284693,-500.0,0.00055068,120]
[321111544,1711900284702,-151.0,0.00055068,120]
[321111545,1711900284712,-259.83,0.00055068,120]
[321111546,1711900284722,-500.0,0.00055068,120]
[321111547,1711900284731,-500.0,0.00055068,120]
[321111548,1711900284740,-517.26054702,0.00055068,120]
[321111549,1711900284751,-545.06,0.00055068,120]
[321111550,1711900284760,-500.0,0.00055068,120]
[321111551,1711900284769,-554.91,0.00055068,120]
[321111552,1711900284778,-500.0,0.00055068,120]
[321111553,1711900284788,-500.0,0.00055068,120]
[321111554,1711900284797,-500.0,0.00055068,120]
[321111555,1711900284806,-500.0,0.00055068,120]
[321111556,1711900284815,-500.0,0.00055068,120]
[321111557,1711900284824,-500.0,0.00055068,120]
[321111558,1711900284833,-628.06355078,0.00055068,120]
[321111559,1711900284842,-151.0,0.00055068,120]
[321111560,1711900284852,-500.0,0.00055068,120]
[321111561,1711900284861,-688.34,0.00055068,120]
[321111562,1711900284870,-1281.67,0.00055068,120]
[321111563,1711900284879,-500.0,0.00055068,120]
[321111564,1711900284889,-500.0,0.00055068,120]
[321111565,1711900284898,-500.0,0.00055068,120]
[321111566,1711900284907,-500.0,0.00055068,120]
[321111567,1711900284916,-500.0,0.00055068,120]
[321111568,1711900284926,-1988.35,0.00055068,120]
[321111569,1711900284934,-500.0,0.00055068,120]
[321111570,1711900284944,-500.0,0.00055068,120]
[321111571,1711900284954,-500.0,0.00055068,120]
[321111572,1711900284964,-500.0,0.00055068,120]
[321111573,1711900284973,-500.0,0.00055068,120]
[321111574,1711900284982,-555.54,0.00055068,120]
[321111575,1711900284991,-505.00127331,0.00055068,120]
[321111576,1711900285001,-500.0,0.00055068,120]
[321111577,1711900285011,-4923.54,0.00055068,120]
[321111578,1711900285020,-500.0,0.00055068,120]
[321111579,1711900285030,-500.0,0.00055068,120]
[321111580,1711900285039,-593.25,0.00055068,120]
[321111581,1711900285048,-500.0,0.00055068,120]
[321111582,1711900285057,-364.19307765,0.00055068,120]
[321111583,1711900285067,-500.0,0.00055068,120]
[321111584,1711900285076,-500.0,0.00055068,120]
[321111585,1711900285085,-500.0,0.00055068,120]
[321111586,1711900285094,-500.0,0.00055068,120]
[321111587,1711900285103,-1037.57,0.00055068,120]
[321111588,1711900285112,-500.0,0.00055068,120]
[321111589,1711900285122,-500.0,0.00055068,120]
[321111590,1711900285131,-500.0,0.00055068,120]
[321111591,1711900285141,-500.0,0.00055068,120]
[321111592,1711900285150,-1959.37,0.00055068,120]
[321111593,1711900285159,-500.0,0.00055068,120]
[321111594,1711900285168,-500.0,0.00055068,120]
[321111595,1711900285178,-500.0,0.00055068,120]
[321111596,1711900285188,-500.0,0.00055068,120]
[321111597,1711900285197,-511.90490684,0.00055068,120]
[321111598,1711900285206,-507.1,0.00055068,120]
[321111599,1711900285215,-973.96,0.00055068,120]
[321111600,1711900285225,-500.0,0.00055068,120]
[321111601,1711900285234,-17432.97,0.00055068,120]
[321111602,1711900285244,-575.53,0.00055068,120]
[321111603,1711900285256,-500.0,0.00055068,120]
[321111604,1711900285266,-500.0,0.00055068,120]
[321111605,1711900285277,-500.0,0.00055068,120]
[321111606,1711900285286,-500.0,0.00055068,120]
[321111607,1711900285296,-836.36,0.00055068,120]
[321111608,1711900285306,-664.02,0.00055068,120]
[321111609,1711900285315,-500.0,0.00055068,120]
[321111610,1711900285325,-535.46809141,0.00055068,120]
[321111611,1711900285334,-4982.73,0.00055068,120]
[321111612,1711900285344,-500.0,0.00055068,120]
[321111613,1711900285353,-500.0,0.00055068,120]
[321111614,1711900285363,-500.0,0.00055068,120]
[321111615,1711900285373,-1206.53,0.00055068,120]
[321111616,1711900285382,-500.0,0.00055068,120]
[321111617,1711900285392,-508.67568534,0.00055068,120]
[321111618,1711900285400,-500.0,0.00055068,120]
[321111619,1711900285410,-561.13,0.00055068,120]
[321111620,1711900285420,-2111.34,0.00055068,120]
[321111621,1711900285430,-500.0,0.00055068,120]
[321111622,1711900285440,-535.14,0.00055068,120]
[321111623,1711900285454,-500.0,0.00055068,120]
[321111624,1711900285471,-500.0,0.00055068,120]
[321111625,1711900285487,-500.0,0.00055068,120]
[321111626,1711900285500,-500.0,0.00055068,120]
[321111627,1711900285516,-500.0,0.00055068,120]
[321111628,1711900285532,-35203.05,0.00055068,120]
[321111629,1711900285547,-500.0,0.00055068,120]
[321111630,1711900285561,-500.0,0.00055068,120]
[321111631,1711900285575,-500.0,0.00055068,120]
[321111632,1711900285590,-500.0,0.00055068,120]
[321111633,1711900285603,-500.0,0.00055068,120]
[321111634,1711900285621,-500.0,0.00055068,120]
[321111635,1711900285633,-20306.49,0.00055068,120]
[321111636,1711900285649,-500.0,0.00055068,120]
[321111637,1711900285666,-500.0,0.00055068,120]
[321111638,1711900285681,-500.0,0.00055068,120]
[321111639,1711900285694,-500.0,0.00055068,120]
[321111640,1711900285709,-2426.71,0.00055068,120]
[321111641,1711900285725,-500.0,0.00055068,120]
[321111642,1711900285742,-500.0,0.00055068,120]
[321111643,1711900285759,-500.0,0.00055068,120]
[321111644,1711900285771,-500.0,0.00055068,120]
[321111645,1711900285783,-500.0,0.00055068,120]
[321111646,1711900285797,-3158.99,0.00055068,120]
[321111647,1711900285810,-500.0,0.00055068,120]
[321111648,1711900285825,-500.0,0.00055068,120]
[321111649,1711900285837,-500.0,0.00055068,120]
[321111650,1711900285851,-151.0,0.00055068,120]
[321111651,1711900285863,-6583.66,0.00055068,120]
[321111652,1711900285876,-550.6,0.00055068,120]
[321111653,1711900285889,-500.0,0.00055068,120]
[321111654,1711900285902,-500.0,0.00055068,120]
[321111655,1711900285915,-500.0,0.00055068,120]
[321111656,1711900285928,-500.0,0.00055068,120]
[321111657,1711900285942,-500.0,0.00055068,120]
[321111658,1711900285955,-4743.47,0.00055068,120]
[321111659,1711900285968,-649.91,0.00055068,120]
[321111660,1711900285982,-1073.79943487,0.00055068,120]
[321111661,1711900285997,-500.0,0.00055068,120]
[321111662,1711900286012,-1008.94,0.00055068,120]
[321111663,1711900286025,-500.0,0.00055068,120]
[321111664,1711900286040,-500.0,0.00055068,120]
[321111665,1711900286054,-151.0,0.00055068,120]
[321111666,1711900286067,-1501.81,0.00055068,120]
[321111667,1711900286080,-500.0,0.00055068,120]
[321111668,1711900286093,-506.22650089,0.00055068,120]
[321111669,1711900286106,-500.0,0.00055068,120]
[321111670,1711900286119,-500.0,0.00055068,120]
[321111671,1711900286132,-500.0,0.00055068,120]
[321111672,1711900286145,-500.46656535,0.00055068,120]
[321111673,1711900286160,-500.0,0.00055068,120]
[321111674,1711900286174,-7272.15,0.00055068,120]
[321111675,1711900286188,-500.0,0.00055068,120]
[321111676,1711900286202,-500.0,0.00055068,120]
[321111677,1711900286215,-500.0,0.00055068,120]
[321111678,1711900286230,-1951.74,0.00055068,120]
[321111679,1711900286243,-500.0,0.00055068,120]
[321111680,1711900286257,-500.0,0.00055068,120]
[321111681,1711900286270,-500.0,0.00055068,120]
[321111682,1711900286287,-500.0,0.00055068,120]
[321111683,1711900286302,-500.0,0.00055068,120]
[321111684,1711900286316,-500.0,0.00055068,120]
[321111685,1711900286329,-500.0,0.00055068,120]
[321111686,1711900286342,-1708.51,0.00055068,120]
[321111687,1711900286356,-500.0,0.00055068,120]
[321111688,1711900286370,-2213.16,0.00055068,120]
[321111689,1711900286384,-500.0,0.00055068,120]
[321111690,1711900286397,-830.035408,0.00055068,120]
[321111691,1711900286410,-516.3,0.00055068,120]
[321111692,1711900286423,-500.0,0.00055068,120]
[321111693,1711900286436,-500.0,0.00055068,120]
[321111694,1711900286448,-500.0,0.00055068,120]
[321111695,1711900286461,-504.57292779,0.00055068,120]
[321111696,1711900286474,-706.06,0.00055068,120]
[321111697,1711900286486,-501.30146912,0.00055068,120]
[321111698,1711900286498,-500.0,0.00055068,120]
[321111699,1711900286512,-500.0,0.00055068,120]
[321111700,1711900286524,-151.0,0.00055068,120]
[321111701,1711900286538,-500.0,0.00055068,120]
[321111702,1711900286550,-500.0,0.00055068,120]
[321111703,1711900286563,-500.0,0.00055068,120]
[321111704,1711900286576,-4238.83,0.00055068,120]
[321111705,1711900286588,-500.0,0.00055068,120]
[321111706,1711900286601,-500.0,0.00055068,120]
[321111707,1711900286614,-1070.8,0.00055068,120]
[321111708,1711900286626,-1153.73,0.00055068,120]
[321111709,1711900286638,-830.035408,0.00055068,120]
[321111710,1711900286650,-510.43204072,0.00055068,120]
[321111711,1711900286662,-506.91,0.00055068,120]
[321111712,1711900286675,-500.0,0.00055068,120]
[321111713,1711900286688,-302.3892317,0.00055068,120]
[321111714,1711900286701,-500.0,0.00055068,120]